[Event "2026 Biel Blitz Open"]
[Site "Biel, CH"]
[Date "2026.07.19"]
[Round "4"]
[White "Alexakis, Dimitrios"]
[Black "Marinkovic, Zoran"]
[Result "1-0"]
[Board "40"]
[TimeControl "180+2"]
[WhiteFideId "4200527"]
[BlackFideId "1346083"]
[WhiteElo "1895"]
[BlackElo "2037"]
[WhiteClock "0:00:16"]
[BlackClock "0:00:14"]
[Variant "Standard"]
[EndDate "2026.07.19"]
[EndTime "12:53:42"]

1. e4 {[%clk 0:03:02]}  c5 {[%clk 0:03:03]} 2. Nf3 {[%clk 0:03:02]}  d6 {[%clk 0:03:05]} 3. d4 {[%clk 0:03:03]}  cxd4 {[%clk 0:03:06]}
4. Nxd4 {[%clk 0:03:03]}  Nf6 {[%clk 0:03:08]} 5. Nc3 {[%clk 0:03:03]}  Nc6 {[%clk 0:03:09]} 6. Bg5 {[%clk 0:03:03]}  e6 {[%clk 0:03:05]}
7. Qd2 {[%clk 0:03:04]}  Be7 {[%clk 0:03:07]} 8. O-O-O {[%clk 0:03:02]}  Bd7 {[%clk 0:02:39]} 9. f4 {[%clk 0:02:57]}  h6 {[%clk 0:02:36]}
10. Bh4 {[%clk 0:02:51]}  Qb6 {[%clk 0:02:12]} 11. Bf2 {[%clk 0:02:40]}  Qd8 {[%clk 0:01:41]} 12. h3 {[%clk 0:02:22]}  a6 {[%clk 0:01:37]}
13. g4 {[%clk 0:02:18]}  b5 {[%clk 0:01:26]} 14. Bg2 {[%clk 0:02:07]}  Rc8 {[%clk 0:01:13]} 15. Kb1 {[%clk 0:02:00]}  b4 {[%clk 0:01:07]}
16. Nce2 {[%clk 0:01:59]}  e5 {[%clk 0:00:56]} 17. Nf5 {[%clk 0:01:34]}  Bxf5 {[%clk 0:00:48]} 18. exf5 {[%clk 0:01:34]}  Qc7 {[%clk 0:00:45]}
19. g5 {[%clk 0:01:27]}  hxg5 {[%clk 0:00:34]} 20. fxg5 {[%clk 0:01:27]}  Nd7 {[%clk 0:00:35]} 21. h4 {[%clk 0:01:13]}  Nb6 {[%clk 0:00:35]}
22. b3 {[%clk 0:01:03]}  a5 {[%clk 0:00:31]} 23. Ng3 {[%clk 0:00:56]}  a4 {[%clk 0:00:31]} 24. Rhf1 {[%clk 0:00:44]}  a3 {[%clk 0:00:29]}
25. f6 {[%clk 0:00:43]}  gxf6 {[%clk 0:00:26]} 26. gxf6 {[%clk 0:00:44]}  Bf8 {[%clk 0:00:27]} 27. Nf5 {[%clk 0:00:34]}  Nd4 {[%clk 0:00:19]}
28. Bxd4 {[%clk 0:00:30]}  exd4 {[%clk 0:00:19]} 29. Rde1+ {[%clk 0:00:28]}  Kd8 {[%clk 0:00:17]} 30. Nxd4 {[%clk 0:00:26]}  Nd7 {[%clk 0:00:15]}
31. Nc6+ {[%clk 0:00:26]}  Qxc6 {[%clk 0:00:16]} 32. Bxc6 {[%clk 0:00:27]}  Rxc6 {[%clk 0:00:17]} 33. Qxb4 {[%clk 0:00:24]}  d5 {[%clk 0:00:17]}
34. Qb7 {[%clk 0:00:24]}  Rc5 {[%clk 0:00:14]} 35. Rf5 {[%clk 0:00:16]}  Rxh4 {[%clk 0:00:13]} 36. Rxd5 {[%clk 0:00:16]}  Rc7 {[%clk 0:00:13]}
37. Qa8+ {[%clk 0:00:16]}  Rc8 {[%clk 0:00:14]} 38. Re8+ {[%clk 0:00:16]} 1-0

[Event "2026 Biel Blitz Open"]
[Site "Biel, CH"]
[Date "2026.07.19"]
[Round "4"]
[White "Mikavica, Mirko"]
[Black "Pinelli, Gian"]
[Result "1-0"]
[Board "41"]
[TimeControl "180+2"]
[WhiteFideId "908657"]
[BlackFideId "1348710"]
[WhiteElo "2015"]
[BlackElo "1751"]
[WhiteClock "0:00:20"]
[BlackClock "0:00:28"]
[Variant "Standard"]
[EndDate "2026.07.19"]
[EndTime "12:55:31"]

1. d4 {[%clk 0:03:03]}  Nf6 {[%clk 0:03:03]} 2. c4 {[%clk 0:03:04]}  g6 {[%clk 0:03:04]} 3. Nc3 {[%clk 0:03:06]}  d5 {[%clk 0:03:05]}
4. Nf3 {[%clk 0:03:06]}  Bg7 {[%clk 0:03:06]} 5. g3 {[%clk 0:03:08]}  O-O {[%clk 0:03:05]} 6. Bg2 {[%clk 0:03:09]}  c6 {[%clk 0:03:03]}
7. b3 {[%clk 0:03:05]}  Bf5 {[%clk 0:02:59]} 8. Bb2 {[%clk 0:02:58]}  Qa5 {[%clk 0:02:59]} 9. O-O {[%clk 0:02:54]}  Ne4 {[%clk 0:02:56]}
10. Qe1 {[%clk 0:01:52]}  Qd8 {[%clk 0:02:36]} 11. Nh4 {[%clk 0:01:44]}  Nxc3 {[%clk 0:02:27]} 12. Bxc3 {[%clk 0:01:37]}  Be6 {[%clk 0:02:27]}
13. cxd5 {[%clk 0:01:24]}  cxd5 {[%clk 0:02:28]} 14. Nf3 {[%clk 0:01:11]}  Nc6 {[%clk 0:02:29]} 15. Qd2 {[%clk 0:01:05]}  Qb6 {[%clk 0:02:24]}
16. Rfc1 {[%clk 0:00:56]}  Rac8 {[%clk 0:02:25]} 17. e3 {[%clk 0:00:54]}  Rfd8 {[%clk 0:02:26]} 18. Ne1 {[%clk 0:00:55]}  Bf5 {[%clk 0:02:19]}
19. Nd3 {[%clk 0:00:55]}  Bxd3 {[%clk 0:02:19]} 20. Qxd3 {[%clk 0:00:56]}  e6 {[%clk 0:02:16]} 21. Bf1 {[%clk 0:00:44]}  a6 {[%clk 0:02:15]}
22. Rab1 {[%clk 0:00:42]}  Nb4 {[%clk 0:02:16]} 23. Qd2 {[%clk 0:00:40]}  Nc6 {[%clk 0:02:10]} 24. b4 {[%clk 0:00:35]}  Na7 {[%clk 0:01:58]}
25. a4 {[%clk 0:00:40]}  Rd6 {[%clk 0:01:29]} 26. b5 {[%clk 0:00:38]}  axb5 {[%clk 0:01:28]} 27. Ba5 {[%clk 0:00:35]}  Qa6 {[%clk 0:01:16]}
28. Rxc8+ {[%clk 0:00:27]}  Nxc8 {[%clk 0:01:17]} 29. axb5 {[%clk 0:00:29]}  Qa8 {[%clk 0:01:16]} 30. Bc7 {[%clk 0:00:27]}  Rd7 {[%clk 0:01:14]}
31. b6 {[%clk 0:00:29]}  Bf8 {[%clk 0:01:15]} 32. Bb5 {[%clk 0:00:30]}  Re7 {[%clk 0:01:06]} 33. Qb2 {[%clk 0:00:24]}  Rxc7 {[%clk 0:00:36]}
34. bxc7 {[%clk 0:00:25]}  Qa5 {[%clk 0:00:36]} 35. Bf1 {[%clk 0:00:13]}  Qxc7 {[%clk 0:00:35]} 36. Qxb7 {[%clk 0:00:14]}  Qxb7 {[%clk 0:00:35]}
37. Rxb7 {[%clk 0:00:15]}  Nd6 {[%clk 0:00:36]} 38. Rb8 {[%clk 0:00:16]}  Ne4 {[%clk 0:00:37]} 39. f3 {[%clk 0:00:11]}  Nd2 {[%clk 0:00:37]}
40. Kf2 {[%clk 0:00:09]}  Kg7 {[%clk 0:00:37]} 41. Bd3 {[%clk 0:00:10]}  e5 {[%clk 0:00:30]} 42. Ke2 {[%clk 0:00:10]}  e4 {[%clk 0:00:31]}
43. Kxd2 {[%clk 0:00:09]}  exd3 {[%clk 0:00:32]} 44. Kxd3 {[%clk 0:00:10]}  Be7 {[%clk 0:00:30]} 45. e4 {[%clk 0:00:11]}  dxe4+ {[%clk 0:00:31]}
46. fxe4 {[%clk 0:00:12]}  Kf6 {[%clk 0:00:31]} 47. d5 {[%clk 0:00:13]}  Bd6 {[%clk 0:00:29]} 48. Rb6 {[%clk 0:00:14]}  Ke5 {[%clk 0:00:30]}
49. Rxd6 {[%clk 0:00:13]}  Kxd6 {[%clk 0:00:31]} 50. Kd4 {[%clk 0:00:14]}  f6 {[%clk 0:00:31]} 51. g4 {[%clk 0:00:16]}  h5 {[%clk 0:00:30]}
52. g5 {[%clk 0:00:16]}  fxg5 {[%clk 0:00:26]} 53. e5+ {[%clk 0:00:18]}  Kd7 {[%clk 0:00:27]} 54. Kc5 {[%clk 0:00:16]}  g4 {[%clk 0:00:29]}
55. e6+ {[%clk 0:00:15]}  Ke7 {[%clk 0:00:29]} 56. Kc6 {[%clk 0:00:16]}  h4 {[%clk 0:00:29]} 57. d6+ {[%clk 0:00:17]}  Kxe6 {[%clk 0:00:29]}
58. d7 {[%clk 0:00:18]}  g3 {[%clk 0:00:29]} 59. hxg3 {[%clk 0:00:20]}  hxg3 {[%clk 0:00:27]} 60. d8=Q {[%clk 0:00:19]}  g2 {[%clk 0:00:28]}
61. Qg5 {[%clk 0:00:20]} 1-0

[Event "2026 Biel Blitz Open"]
[Site "Biel, CH"]
[Date "2026.07.19"]
[Round "4"]
[White "Altenburger, Rene"]
[Black "Delesenne, Arthur"]
[Result "1-0"]
[Board "42"]
[TimeControl "180+2"]
[WhiteFideId "1305581"]
[BlackFideId "276979"]
[WhiteElo "1990"]
[BlackElo "1789"]
[WhiteClock "0:00:23"]
[BlackClock "0:00:54"]
[Variant "Standard"]
[EndDate "2026.07.19"]
[EndTime "12:52:52"]

1. d4 {[%clk 0:03:02]}  d5 {[%clk 0:03:03]} 2. Nf3 {[%clk 0:03:02]}  Nf6 {[%clk 0:03:04]} 3. e3 {[%clk 0:03:01]}  c6 {[%clk 0:03:04]}
4. Bd3 {[%clk 0:03:00]}  Bg4 {[%clk 0:03:05]} 5. O-O {[%clk 0:02:47]}  Nbd7 {[%clk 0:03:06]} 6. h3 {[%clk 0:02:45]}  Bh5 {[%clk 0:03:05]}
7. Be2 {[%clk 0:02:40]}  e6 {[%clk 0:03:02]} 8. b3 {[%clk 0:02:37]}  Bd6 {[%clk 0:03:00]} 9. Bb2 {[%clk 0:02:38]}  O-O {[%clk 0:02:59]}
10. c4 {[%clk 0:02:39]}  Ne4 {[%clk 0:02:54]} 11. Nbd2 {[%clk 0:02:29]}  f5 {[%clk 0:02:49]} 12. Rc1 {[%clk 0:02:07]}  a5 {[%clk 0:02:50]}
13. cxd5 {[%clk 0:01:51]}  exd5 {[%clk 0:02:48]} 14. Ne1 {[%clk 0:01:10]}  Bxe2 {[%clk 0:02:40]} 15. Qxe2 {[%clk 0:01:10]}  Bb4 {[%clk 0:02:31]}
16. Ndf3 {[%clk 0:00:49]}  f4 {[%clk 0:02:22]} 17. exf4 {[%clk 0:00:46]}  Rxf4 {[%clk 0:02:22]} 18. Nd3 {[%clk 0:00:47]}  Rf6 {[%clk 0:02:09]}
19. a3 {[%clk 0:00:33]}  Bd6 {[%clk 0:02:06]} 20. Nfe5 {[%clk 0:00:24]}  Qc7 {[%clk 0:00:59]} 21. Nxd7 {[%clk 0:00:23]}  Qxd7 {[%clk 0:00:59]}
22. Nc5 {[%clk 0:00:24]}  Re8 {[%clk 0:00:54]} 23. Nxd7 {[%clk 0:00:23]} 1-0

[Event "2026 Biel Blitz Open"]
[Site "Biel, CH"]
[Date "2026.07.19"]
[Round "4"]
[White "Kutonov, Yehor"]
[Black "Dai, Wenzhi"]
[Result "0-1"]
[Board "44"]
[TimeControl "180+2"]
[WhiteFideId "1364804"]
[BlackFideId "8608369"]
[WhiteElo "1805"]
[BlackElo "1943"]
[WhiteClock "0:00:08"]
[BlackClock "0:00:09"]
[Variant "Standard"]
[EndDate "2026.07.19"]
[EndTime "12:53:33"]

1. c4 {[%clk 0:03:02]}  e5 {[%clk 0:03:03]} 2. Nc3 {[%clk 0:03:03]}  Nf6 {[%clk 0:03:04]} 3. g3 {[%clk 0:03:05]}  Nc6 {[%clk 0:03:04]}
4. Bg2 {[%clk 0:03:06]}  Bb4 {[%clk 0:03:02]} 5. Nd5 {[%clk 0:03:04]}  a5 {[%clk 0:03:04]} 6. a3 {[%clk 0:02:58]}  Bc5 {[%clk 0:02:58]}
7. e4 {[%clk 0:02:45]}  O-O {[%clk 0:02:57]} 8. d3 {[%clk 0:02:44]}  h6 {[%clk 0:02:58]} 9. Ne2 {[%clk 0:02:41]}  d6 {[%clk 0:02:58]}
10. O-O {[%clk 0:02:41]}  Be6 {[%clk 0:02:54]} 11. Kh1 {[%clk 0:02:41]}  Rb8 {[%clk 0:02:41]} 12. f4 {[%clk 0:02:30]}  Ng4 {[%clk 0:02:35]}
13. d4 {[%clk 0:02:16]}  Nxd4 {[%clk 0:02:26]} 14. h3 {[%clk 0:02:12]}  Bxd5 {[%clk 0:01:53]} 15. cxd5 {[%clk 0:01:58]}  Nf6 {[%clk 0:01:46]}
16. f5 {[%clk 0:01:47]}  c6 {[%clk 0:01:44]} 17. Nc3 {[%clk 0:01:32]}  cxd5 {[%clk 0:01:39]} 18. exd5 {[%clk 0:01:23]}  b5 {[%clk 0:01:40]}
19. g4 {[%clk 0:01:01]}  b4 {[%clk 0:01:35]} 20. axb4 {[%clk 0:00:56]}  axb4 {[%clk 0:01:35]} 21. Na4 {[%clk 0:00:54]}  Nd7 {[%clk 0:01:23]}
22. Nxc5 {[%clk 0:00:52]}  Nxc5 {[%clk 0:01:23]} 23. Be3 {[%clk 0:00:40]}  Ndb3 {[%clk 0:01:01]} 24. Rb1 {[%clk 0:00:23]}  Qf6 {[%clk 0:00:42]}
25. Kh2 {[%clk 0:00:18]}  e4 {[%clk 0:00:38]} 26. Qe1 {[%clk 0:00:11]}  Nd3 {[%clk 0:00:28]} 27. Qe2 {[%clk 0:00:09]}  Nbc5 {[%clk 0:00:28]}
28. Bxe4 {[%clk 0:00:08]}  Nxe4 {[%clk 0:00:22]} 29. Qxd3 {[%clk 0:00:09]}  Rfe8 {[%clk 0:00:19]} 30. Rbe1 {[%clk 0:00:08]}  Qxb2+ {[%clk 0:00:18]}
31. Re2 {[%clk 0:00:08]}  Qc3 {[%clk 0:00:17]} 32. Qd1 {[%clk 0:00:07]}  b3 {[%clk 0:00:17]} 33. Bd4 {[%clk 0:00:07]}  Qg3+ {[%clk 0:00:16]}
34. Kh1 {[%clk 0:00:08]}  Qxh3+ {[%clk 0:00:17]} 35. Rh2 {[%clk 0:00:08]}  Ng3+ {[%clk 0:00:16]} 36. Kg1 {[%clk 0:00:08]}  Qxf1+ {[%clk 0:00:09]} 0-1

[Event "2026 Biel Blitz Open"]
[Site "Biel, CH"]
[Date "2026.07.19"]
[Round "4"]
[White "Jelicic, Hugo"]
[Black "Stevens, Christian"]
[Result "1-0"]
[Board "45"]
[TimeControl "180+2"]
[WhiteFideId "1349040"]
[BlackFideId "649090"]
[WhiteElo "1804"]
[BlackElo "1912"]
[WhiteClock "0:00:32"]
[BlackClock "0:00:04"]
[Variant "Standard"]
[EndDate "2026.07.19"]
[EndTime "12:53:56"]

1. b4 {[%clk 0:03:00]}  e5 {[%clk 0:02:58]} 2. Bb2 {[%clk 0:03:01]}  Bxb4 {[%clk 0:02:59]} 3. Bxe5 {[%clk 0:02:59]}  Nf6 {[%clk 0:02:59]}
4. Nf3 {[%clk 0:02:58]}  Nc6 {[%clk 0:03:00]} 5. Bb2 {[%clk 0:02:58]}  d5 {[%clk 0:02:52]} 6. e3 {[%clk 0:02:59]}  O-O {[%clk 0:02:46]}
7. Be2 {[%clk 0:02:49]}  h6 {[%clk 0:02:33]} 8. O-O {[%clk 0:02:49]}  Bf5 {[%clk 0:02:29]} 9. d4 {[%clk 0:02:40]}  Re8 {[%clk 0:02:20]}
10. Bd3 {[%clk 0:02:41]}  Ne4 {[%clk 0:02:13]} 11. c4 {[%clk 0:02:27]}  dxc4 {[%clk 0:02:00]} 12. Bxc4 {[%clk 0:02:28]}  Bg4 {[%clk 0:01:56]}
13. Be2 {[%clk 0:02:28]}  Ne7 {[%clk 0:01:45]} 14. Ne5 {[%clk 0:02:23]}  Bxe2 {[%clk 0:01:43]} 15. Qxe2 {[%clk 0:02:24]}  Bd6 {[%clk 0:01:33]}
16. Qf3 {[%clk 0:02:01]}  Bxe5 {[%clk 0:01:17]} 17. Qxe4 {[%clk 0:01:58]}  Bf6 {[%clk 0:01:12]} 18. Rc1 {[%clk 0:01:56]}  Nd5 {[%clk 0:01:08]}
19. Qf3 {[%clk 0:01:52]}  c6 {[%clk 0:01:04]} 20. Nd2 {[%clk 0:01:47]}  Qd7 {[%clk 0:00:46]} 21. Ne4 {[%clk 0:01:44]}  Be7 {[%clk 0:00:31]}
22. a4 {[%clk 0:01:40]}  Bb4 {[%clk 0:00:30]} 23. Ba3 {[%clk 0:01:36]}  a5 {[%clk 0:00:32]} 24. Nc5 {[%clk 0:01:33]}  Bxc5 {[%clk 0:00:30]}
25. Rxc5 {[%clk 0:01:26]}  Nb4 {[%clk 0:00:28]} 26. Bxb4 {[%clk 0:01:14]}  axb4 {[%clk 0:00:29]} 27. Qd1 {[%clk 0:00:56]}  b6 {[%clk 0:00:24]}
28. Rc4 {[%clk 0:00:56]}  Qd6 {[%clk 0:00:25]} 29. Qc2 {[%clk 0:00:51]}  Rec8 {[%clk 0:00:24]} 30. Rd1 {[%clk 0:00:40]}  Ra5 {[%clk 0:00:25]}
31. Qb3 {[%clk 0:00:35]}  Rd8 {[%clk 0:00:18]} 32. Rxb4 {[%clk 0:00:36]}  c5 {[%clk 0:00:06]} 33. Rxb6 {[%clk 0:00:37]}  Qc7 {[%clk 0:00:06]}
34. Rb7 {[%clk 0:00:36]}  c4 {[%clk 0:00:04]} 35. Qb4 {[%clk 0:00:32]}  Rxa4 {[%clk 0:00:00]} 1-0

[Event "2026 Biel Blitz Open"]
[Site "Biel, CH"]
[Date "2026.07.19"]
[Round "4"]
[White "Nguyen Thi Mai Hung"]
[Black "Filimonov, Arsenii"]
[Result "1-0"]
[Board "46"]
[TimeControl "180+2"]
[WhiteFideId "12401676"]
[BlackFideId "34171584"]
[WhiteElo "2039"]
[BlackElo "1735"]
[WhiteTitle "WGM"]
[WhiteClock "0:00:18"]
[BlackClock "0:00:05"]
[Variant "Standard"]
[EndDate "2026.07.19"]
[EndTime "12:50:23"]

1. d4 {[%clk 0:03:03]}  Nf6 {[%clk 0:03:03]} 2. Nf3 {[%clk 0:03:04]}  d5 {[%clk 0:03:02]} 3. c4 {[%clk 0:03:04]}  e6 {[%clk 0:03:02]}
4. Nc3 {[%clk 0:03:05]}  Be7 {[%clk 0:02:54]} 5. Bf4 {[%clk 0:03:02]}  c6 {[%clk 0:02:40]} 6. e3 {[%clk 0:03:03]}  O-O {[%clk 0:02:39]}
7. Qc2 {[%clk 0:03:02]}  Nbd7 {[%clk 0:02:36]} 8. cxd5 {[%clk 0:02:56]}  exd5 {[%clk 0:02:34]} 9. Bd3 {[%clk 0:02:57]}  h6 {[%clk 0:02:35]}
10. O-O {[%clk 0:02:55]}  Re8 {[%clk 0:02:35]} 11. h3 {[%clk 0:02:47]}  Nf8 {[%clk 0:02:30]} 12. Ne5 {[%clk 0:02:48]}  Bd6 {[%clk 0:02:17]}
13. Rab1 {[%clk 0:02:48]}  Be6 {[%clk 0:01:39]} 14. b4 {[%clk 0:02:46]}  Rc8 {[%clk 0:01:39]} 15. Rfc1 {[%clk 0:02:45]}  b6 {[%clk 0:01:29]}
16. Qa4 {[%clk 0:02:40]}  Qc7 {[%clk 0:01:11]} 17. Ba6 {[%clk 0:02:36]}  Ra8 {[%clk 0:01:02]} 18. Qxc6 {[%clk 0:02:31]}  Bxe5 {[%clk 0:00:59]}
19. Qxc7 {[%clk 0:02:31]}  Bxc7 {[%clk 0:00:59]} 20. Bxc7 {[%clk 0:02:32]}  Bf5 {[%clk 0:00:56]} 21. Rb3 {[%clk 0:02:23]}  Ne6 {[%clk 0:00:56]}
22. Be5 {[%clk 0:02:21]}  Nd7 {[%clk 0:00:40]} 23. Bg3 {[%clk 0:02:15]}  Nf6 {[%clk 0:00:40]} 24. Be5 {[%clk 0:02:03]}  Nd7 {[%clk 0:00:40]}
25. Nxd5 {[%clk 0:01:46]}  Nxe5 {[%clk 0:00:38]} 26. dxe5 {[%clk 0:01:47]}  Rad8 {[%clk 0:00:37]} 27. Nf4 {[%clk 0:01:27]}  Nxf4 {[%clk 0:00:30]}
28. exf4 {[%clk 0:01:27]}  Rd4 {[%clk 0:00:30]} 29. g3 {[%clk 0:01:01]}  Bxh3 {[%clk 0:00:23]} 30. a3 {[%clk 0:01:00]}  Red8 {[%clk 0:00:22]}
31. Rbc3 {[%clk 0:00:50]}  Rd1+ {[%clk 0:00:16]} 32. Kh2 {[%clk 0:00:49]}  Be6 {[%clk 0:00:15]} 33. Bb7 {[%clk 0:00:42]}  R1d2 {[%clk 0:00:12]}
34. Kg2 {[%clk 0:00:43]}  Ra2 {[%clk 0:00:11]} 35. R1c2 {[%clk 0:00:43]}  Rxc2 {[%clk 0:00:07]} 36. Rxc2 {[%clk 0:00:44]}  Rd3 {[%clk 0:00:07]}
37. a4 {[%clk 0:00:43]}  Rd4 {[%clk 0:00:07]} 38. Rb2 {[%clk 0:00:42]}  g6 {[%clk 0:00:07]} 39. Kf3 {[%clk 0:00:40]}  Bd7 {[%clk 0:00:07]}
40. Ke3 {[%clk 0:00:35]}  Rc4 {[%clk 0:00:06]} 41. a5 {[%clk 0:00:36]}  Rc7 {[%clk 0:00:05]} 42. Bd5 {[%clk 0:00:35]}  bxa5 {[%clk 0:00:04]}
43. bxa5 {[%clk 0:00:36]}  Kg7 {[%clk 0:00:04]} 44. Kd4 {[%clk 0:00:36]}  h5 {[%clk 0:00:04]} 45. Rb7 {[%clk 0:00:35]}  Rxb7 {[%clk 0:00:04]}
46. Bxb7 {[%clk 0:00:35]}  Bb5 {[%clk 0:00:04]} 47. Kc5 {[%clk 0:00:36]}  Be2 {[%clk 0:00:04]} 48. Kd6 {[%clk 0:00:32]}  Kh6 {[%clk 0:00:04]}
49. Ke7 {[%clk 0:00:30]}  Bc4 {[%clk 0:00:05]} 50. Kf6 {[%clk 0:00:27]}  h4 {[%clk 0:00:03]} 51. gxh4 {[%clk 0:00:28]}  Kh5 {[%clk 0:00:05]}
52. f5 {[%clk 0:00:23]}  gxf5 {[%clk 0:00:04]} 53. Kxf5 {[%clk 0:00:23]}  Kxh4 {[%clk 0:00:05]} 54. Bc6 {[%clk 0:00:19]}  Kh3 {[%clk 0:00:05]}
55. Kg5 {[%clk 0:00:16]}  Kh2 {[%clk 0:00:05]} 56. f4 {[%clk 0:00:16]}  Kg3 {[%clk 0:00:05]} 57. f5 {[%clk 0:00:16]}  Kf2 {[%clk 0:00:04]}
58. Kf6 {[%clk 0:00:17]}  Ke3 {[%clk 0:00:05]} 59. Be8 {[%clk 0:00:15]}  Ke4 {[%clk 0:00:03]} 60. Bxf7 {[%clk 0:00:15]}  Bb5 {[%clk 0:00:03]}
61. e6 {[%clk 0:00:16]}  a6 {[%clk 0:00:04]} 62. e7 {[%clk 0:00:17]}  Bc6 {[%clk 0:00:04]} 63. e8=Q+ {[%clk 0:00:17]}  Bxe8 {[%clk 0:00:05]}
64. Bxe8 {[%clk 0:00:18]} 1-0

[Event "2026 Biel Blitz Open"]
[Site "Biel, CH"]
[Date "2026.07.19"]
[Round "4"]
[White "Paholok, Igor"]
[Black "Osmani, Xhevdet"]
[Result "0-1"]
[Board "48"]
[TimeControl "180+2"]
[WhiteFideId "1338951"]
[BlackFideId "22104569"]
[WhiteElo "1728"]
[BlackElo "1959"]
[WhiteClock "0:00:07"]
[BlackClock "0:01:44"]
[Variant "Standard"]
[EndDate "2026.07.19"]
[EndTime "12:46:12"]

1. d4 {[%clk 0:03:01]}  c6 {[%clk 0:02:39]} 2. Nf3 {[%clk 0:03:00]}  d6 {[%clk 0:02:41]} 3. e3 {[%clk 0:02:58]}  Nf6 {[%clk 0:02:42]}
4. Bd3 {[%clk 0:02:59]}  e6 {[%clk 0:02:42]} 5. O-O {[%clk 0:02:58]}  Be7 {[%clk 0:02:41]} 6. c3 {[%clk 0:02:55]}  O-O {[%clk 0:02:43]}
7. Nbd2 {[%clk 0:02:41]}  b6 {[%clk 0:02:45]} 8. e4 {[%clk 0:02:39]}  Bb7 {[%clk 0:02:45]} 9. Re1 {[%clk 0:02:42]}  Nbd7 {[%clk 0:02:47]}
10. Nf1 {[%clk 0:02:39]}  Qc7 {[%clk 0:02:49]} 11. Bc2 {[%clk 0:02:36]}  c5 {[%clk 0:02:49]} 12. Qd3 {[%clk 0:02:39]}  g6 {[%clk 0:02:51]}
13. Bg5 {[%clk 0:02:26]}  Rac8 {[%clk 0:02:50]} 14. e5 {[%clk 0:02:17]}  dxe5 {[%clk 0:02:48]} 15. Nxe5 {[%clk 0:02:12]}  Nd5 {[%clk 0:02:47]}
16. Bxe7 {[%clk 0:01:57]}  Nxe5 {[%clk 0:02:47]} 17. Qh3 {[%clk 0:01:13]}  Qxe7 {[%clk 0:02:31]} 18. dxe5 {[%clk 0:01:13]}  Rcd8 {[%clk 0:02:29]}
19. Ne3 {[%clk 0:01:04]}  Qg5 {[%clk 0:02:16]} 20. Ng4 {[%clk 0:00:44]}  h5 {[%clk 0:02:10]} 21. Ne3 {[%clk 0:00:24]}  Nf4 {[%clk 0:02:11]}
22. Qg3 {[%clk 0:00:21]}  Qh6 {[%clk 0:01:52]} 23. f3 {[%clk 0:00:13]}  Rd2 {[%clk 0:01:52]} 24. Rad1 {[%clk 0:00:09]}  Rfd8 {[%clk 0:01:53]}
25. Rxd2 {[%clk 0:00:07]}  Rxd2 {[%clk 0:01:54]} 26. Rd1 {[%clk 0:00:00]}  Ne2+ {[%clk 0:01:44]} 0-1

[Event "2026 Biel Blitz Open"]
[Site "Biel, CH"]
[Date "2026.07.19"]
[Round "4"]
[White "Materia, Mario"]
[Black "Garcia, Miguel"]
[Result "0-1"]
[Board "49"]
[TimeControl "180+2"]
[WhiteFideId "651082241"]
[BlackFideId "1317431"]
[WhiteElo "1723"]
[BlackElo "1938"]
[WhiteClock "0:00:11"]
[BlackClock "0:01:49"]
[Variant "Standard"]
[EndDate "2026.07.19"]
[EndTime "12:53:22"]

1. d4 {[%clk 0:03:01]}  Nf6 {[%clk 0:03:03]} 2. c4 {[%clk 0:03:02]}  g6 {[%clk 0:03:03]} 3. Nc3 {[%clk 0:03:03]}  Bg7 {[%clk 0:03:04]}
4. e4 {[%clk 0:03:04]}  d6 {[%clk 0:03:05]} 5. h3 {[%clk 0:03:05]}  O-O {[%clk 0:03:05]} 6. Be3 {[%clk 0:03:06]}  Nc6 {[%clk 0:03:04]}
7. Nf3 {[%clk 0:03:03]}  e5 {[%clk 0:03:04]} 8. d5 {[%clk 0:03:04]}  Ne7 {[%clk 0:03:04]} 9. g4 {[%clk 0:03:02]}  Nd7 {[%clk 0:03:04]}
10. Bd3 {[%clk 0:02:58]}  Nc5 {[%clk 0:03:02]} 11. Bc2 {[%clk 0:02:56]}  f5 {[%clk 0:02:59]} 12. gxf5 {[%clk 0:02:56]}  gxf5 {[%clk 0:03:00]}
13. Ng5 {[%clk 0:02:25]}  h6 {[%clk 0:02:47]} 14. Nf3 {[%clk 0:01:47]}  fxe4 {[%clk 0:02:14]} 15. Nxe4 {[%clk 0:01:29]}  Nxe4 {[%clk 0:02:04]}
16. Bxe4 {[%clk 0:01:26]}  Bf5 {[%clk 0:02:04]} 17. Nd2 {[%clk 0:01:13]}  Kh8 {[%clk 0:01:52]} 18. Qh5 {[%clk 0:01:08]}  Qe8 {[%clk 0:01:44]}
19. Qxe8 {[%clk 0:01:01]}  Raxe8 {[%clk 0:01:45]} 20. O-O-O {[%clk 0:00:58]}  b6 {[%clk 0:01:39]} 21. b3 {[%clk 0:00:59]}  Rf7 {[%clk 0:01:23]}
22. f3 {[%clk 0:00:43]}  Ng6 {[%clk 0:01:17]} 23. Rdf1 {[%clk 0:00:37]}  Ref8 {[%clk 0:01:13]} 24. Rhg1 {[%clk 0:00:29]}  Nh4 {[%clk 0:01:12]}
25. Bxf5 {[%clk 0:00:13]}  Nxf5 {[%clk 0:01:05]} 26. Re1 {[%clk 0:00:13]}  Nxe3 {[%clk 0:01:00]} 27. Rxe3 {[%clk 0:00:14]}  h5 {[%clk 0:00:56]}
28. Rg5 {[%clk 0:00:12]}  Rf5 {[%clk 0:00:53]} 29. Rxf5 {[%clk 0:00:09]}  Rxf5 {[%clk 0:00:53]} 30. Ne4 {[%clk 0:00:10]}  Bh6 {[%clk 0:01:50]}
31. Kd2 {[%clk 0:00:11]}  Rxf3 {[%clk 0:01:49]} 0-1

[Event "2026 Biel Blitz Open"]
[Site "Biel, CH"]
[Date "2026.07.19"]
[Round "4"]
[White "Heitmann, Erik"]
[Black "Knuesel, Jolan"]
[Result "1-0"]
[Board "50"]
[TimeControl "180+2"]
[WhiteFideId "34608940"]
[BlackFideId "1364529"]
[WhiteElo "1885"]
[BlackElo "1728"]
[WhiteClock "0:00:07"]
[BlackClock "0:00:07"]
[Variant "Standard"]
[EndDate "2026.07.19"]
[EndTime "12:48:33"]

1. d4 {[%clk 0:03:04]}  d5 {[%clk 0:03:02]} 2. c4 {[%clk 0:03:05]}  Nf6 {[%clk 0:03:01]} 3. Nc3 {[%clk 0:02:59]}  g6 {[%clk 0:03:02]}
4. cxd5 {[%clk 0:02:58]}  Nxd5 {[%clk 0:03:02]} 5. e4 {[%clk 0:02:59]}  Nxc3 {[%clk 0:03:02]} 6. bxc3 {[%clk 0:03:01]}  Bg7 {[%clk 0:03:02]}
7. Bc4 {[%clk 0:03:02]}  O-O {[%clk 0:03:02]} 8. Ne2 {[%clk 0:03:03]}  Nd7 {[%clk 0:02:49]} 9. h4 {[%clk 0:02:59]}  Nb6 {[%clk 0:02:35]}
10. Bb3 {[%clk 0:02:59]}  h5 {[%clk 0:02:31]} 11. Be3 {[%clk 0:02:57]}  a5 {[%clk 0:02:22]} 12. a4 {[%clk 0:02:19]}  e6 {[%clk 0:01:56]}
13. Qd2 {[%clk 0:02:04]}  Bd7 {[%clk 0:01:30]} 14. Bh6 {[%clk 0:01:48]}  Qe8 {[%clk 0:01:26]} 15. Bxg7 {[%clk 0:01:32]}  Kxg7 {[%clk 0:01:22]}
16. Qc2 {[%clk 0:01:11]}  f5 {[%clk 0:00:50]} 17. e5 {[%clk 0:01:01]}  Bc6 {[%clk 0:00:43]} 18. f3 {[%clk 0:00:56]}  Nd5 {[%clk 0:00:41]}
19. Rh3 {[%clk 0:00:44]}  Ne3 {[%clk 0:00:34]} 20. Qd2 {[%clk 0:00:28]}  f4 {[%clk 0:00:13]} 21. Nxf4 {[%clk 0:00:28]}  Rxf4 {[%clk 0:00:13]}
22. Qxe3 {[%clk 0:00:28]}  Qf7 {[%clk 0:00:13]} 23. Ke2 {[%clk 0:00:17]}  Rf8 {[%clk 0:00:13]} 24. Rf1 {[%clk 0:00:15]}  Qe7 {[%clk 0:00:13]}
25. g3 {[%clk 0:00:13]}  R4f7 {[%clk 0:00:11]} 26. g4 {[%clk 0:00:08]}  Qa3 {[%clk 0:00:11]} 27. Bc2 {[%clk 0:00:06]}  Qb2 {[%clk 0:00:11]}
28. Qd3 {[%clk 0:00:08]}  Bxa4 {[%clk 0:00:07]} 29. Qxg6+ {[%clk 0:00:08]}  Kh8 {[%clk 0:00:07]} 30. Qxh5+ {[%clk 0:00:08]}  Kg7 {[%clk 0:00:07]}
31. Qh7# {[%clk 0:00:07]} 1-0